fUSD/lending_fUSD_20250221
["ID","MTS","AMOUNT","RATE_DAILY","PERIOD"]
[353979055,1740172264678,-500.0,0.00011613,2]
[353979056,1740172264687,-552.92,0.00011613,2]
[353979057,1740172264696,-664.1,0.00011613,2]
[353979058,1740172264706,-500.0,0.00011613,2]
[353979059,1740172264715,-500.0,0.00011613,2]
[353979060,1740172264725,-500.0,0.00011613,2]
[353979061,1740172264739,-641.81,0.00011613,2]
[353979062,1740172264748,-500.0,0.00011613,2]
[353979063,1740172264758,-595.22410249,0.00011613,2]
[353979064,1740172264767,-500.0,0.00011613,2]
[353979065,1740172264777,-529.44,0.00011613,2]
[353979066,1740172264787,-500.0,0.00011613,2]
[353979067,1740172264796,-500.0,0.00011613,2]
[353979068,1740172264805,-500.0,0.00011613,2]
[353979069,1740172264815,-580.98,0.00011613,2]
[353979070,1740172264824,-500.0,0.00011613,2]
[353979071,1740172264833,-500.0,0.00011613,2]
[353979072,1740172264842,-656.48,0.00011613,2]
[353979073,1740172264852,-500.0,0.00011613,2]
[353979074,1740172264862,-645.51,0.00011613,2]
[353979075,1740172264871,-500.0,0.00011613,2]
[353979076,1740172264881,-500.0,0.00011613,2]
[353979077,1740172264891,-500.0,0.00011613,2]
[353979078,1740172264900,-875.23,0.00011613,2]
[353979079,1740172264909,-819.32,0.00011613,2]
[353979080,1740172264919,-514.61,0.00011613,2]
[353979081,1740172264928,-500.0,0.00011613,2]
[353979082,1740172264938,-681.73,0.00011613,2]
[353979083,1740172264947,-500.0,0.00011613,2]
[353979084,1740172264956,-773.23,0.00011613,2]
[353979085,1740172264965,-500.0,0.00011613,2]
[353979086,1740172264974,-500.0,0.00011613,2]
[353979087,1740172264986,-500.0,0.00011613,2]
[353979088,1740172264995,-500.0,0.00011613,2]
[353979089,1740172265004,-500.0,0.00011613,2]
[353979090,1740172265013,-193.607216,0.00011613,2]
[353979091,1740172265022,-760.5,0.00011613,2]
[353979092,1740172265031,-512.06579557,0.00011613,2]
[353979093,1740172265041,-500.0,0.00011613,2]
[353979094,1740172265050,-565.11,0.00011613,2]
[353979095,1740172265059,-281.23673,0.00011613,2]
[353979096,1740172265068,-500.0,0.00011613,2]
[353979097,1740172265077,-500.0,0.00011613,2]
[353979098,1740172265086,-703.17,0.00011613,2]
[353979099,1740172265095,-500.0,0.00011613,2]
[353979100,1740172265104,-709.63,0.00011613,2]
[353979101,1740172265113,-562.69,0.00011613,2]
[353979102,1740172265122,-696.24,0.00011613,2]
[353979103,1740172265131,-567.21,0.00011613,2]
[353979104,1740172265140,-500.0,0.00011613,2]
[353979105,1740172265149,-694.16,0.00011613,2]
[353979106,1740172265158,-678.43,0.00011613,2]
[353979107,1740172265167,-690.55,0.00011613,2]
[353979108,1740172265176,-500.0,0.00011613,2]
[353979109,1740172265185,-500.0,0.00011613,2]
[353979110,1740172265194,-663.28,0.00011613,2]
[353979111,1740172265205,-500.0,0.00011613,2]
[353979112,1740172265215,-996.53,0.00011613,2]
[353979113,1740172265223,-731.38,0.00011613,2]
[353979114,1740172265234,-500.0,0.00011613,2]
[353979115,1740172265243,-643.91,0.00011613,2]
[353979116,1740172265252,-437.93550717,0.00011613,2]
[353979117,1740172265261,-500.0,0.00011613,2]
[353979118,1740172265270,-500.0,0.00011613,2]
[353979119,1740172265280,-500.0,0.00011613,2]
[353979120,1740172265289,-500.0,0.00011613,2]
[353979121,1740172265298,-731.06,0.00011613,2]
[353979122,1740172265307,-500.0,0.00011613,2]
[353979123,1740172265316,-500.0,0.00011613,2]
[353979124,1740172265325,-500.0,0.00011613,2]
[353979125,1740172265334,-710.81,0.00011613,2]
[353979126,1740172265344,-500.6,0.00011613,2]
[353979127,1740172265352,-500.0,0.00011613,2]
[353979128,1740172265361,-624.32,0.00011613,2]
[353979129,1740172265370,-500.0,0.00011613,2]
[353979130,1740172265379,-500.0,0.00011613,2]
[353979131,1740172265388,-595.44,0.00011613,2]
[353979132,1740172265398,-500.0,0.00011613,2]
[353979133,1740172265410,-751.36,0.00011613,2]
[353979134,1740172265419,-636.57,0.00011613,2]
[353979135,1740172265428,-500.0,0.00011613,2]
[353979136,1740172265437,-500.0,0.00011613,2]
[353979137,1740172265447,-500.0,0.00011613,2]
[353979138,1740172265456,-893.82,0.00011613,2]
[353979139,1740172265465,-174.831552,0.00011613,2]
[353979140,1740172265474,-500.0,0.00011613,2]
[353979141,1740172265487,-500.0,0.00011613,2]
[353979142,1740172265497,-500.0,0.00011613,2]
[353979143,1740172265506,-587.07,0.00011613,2]
[353979144,1740172265515,-500.0,0.00011613,2]
[353979145,1740172265524,-1704.14,0.00011613,2]
[353979146,1740172265533,-500.0,0.00011613,2]
[353979147,1740172265543,-870.24,0.00011613,2]
[353979148,1740172265552,-523.06,0.00011613,2]
[353979149,1740172265560,-1140.49,0.00011613,2]
[353979150,1740172265569,-500.0,0.00011613,2]
[353979151,1740172265578,-1885.94,0.00011613,2]
[353979152,1740172265587,-762.29,0.00011613,2]
[353979153,1740172265597,-985.36,0.00011613,2]
[353979154,1740172265606,-1329.74,0.00011613,2]
[353979155,1740172265615,-1050.0,0.00011613,2]
[353979156,1740172265625,-841.39,0.00011613,2]
[353979157,1740172265635,-500.0,0.00011613,2]
[353979158,1740172265643,-1478.11,0.00011613,2]
[353979159,1740172265653,-1687.94,0.00011613,2]
[353979160,1740172265662,-500.0,0.00011613,2]
[353979161,1740172265671,-1236.11,0.00011613,2]
[353979162,1740172265679,-500.0,0.00011613,2]
[353979163,1740172265689,-527.93,0.00011613,2]
[353979164,1740172265698,-500.0,0.00011613,2]
[353979165,1740172265707,-836.59,0.00011613,2]
[353979166,1740172265716,-1031.57,0.00011613,2]
[353979167,1740172265725,-1035.44,0.00011613,2]
[353979168,1740172265736,-500.0,0.00011613,2]
[353979169,1740172265746,-1245.12,0.00011613,2]
[353979170,1740172265755,-1117.96,0.00011613,2]
[353979171,1740172265764,-500.0,0.00011613,2]
[353979172,1740172265773,-1068.45,0.00011613,2]
[353979173,1740172265782,-1183.89,0.00011613,2]
[353979174,1740172265791,-500.0,0.00011613,2]
[353979175,1740172265800,-1056.87,0.00011613,2]
[353979176,1740172265810,-5637.87,0.00011613,2]
[353979177,1740172265819,-559.58,0.00011613,2]
[353979178,1740172265828,-797.09,0.00011613,2]
[353979179,1740172265838,-1352.53,0.00011613,2]
[353979180,1740172265847,-739.7,0.00011613,2]
[353979181,1740172265856,-500.0,0.00011613,2]
[353979182,1740172265867,-1479.65,0.00011613,2]
[353979183,1740172265876,-500.0,0.00011613,2]
[353979184,1740172265885,-896.66,0.00011613,2]
[353979185,1740172265894,-2215.1,0.00011613,2]
[353979186,1740172265903,-1219.06,0.00011613,2]
[353979187,1740172265913,-500.0,0.00011613,2]
[353979188,1740172265923,-1253.82,0.00011613,2]
[353979189,1740172265932,-1134.86,0.00011613,2]
[353979190,1740172265941,-1523.22,0.00011613,2]
[353979191,1740172265951,-500.0,0.00011613,2]
[353979192,1740172265960,-500.0,0.00011613,2]
[353979193,1740172265970,-500.0,0.00011613,2]
[353979194,1740172265979,-559.06733804,0.00011613,2]
[353979195,1740172265989,-1190.42,0.00011613,2]
[353979196,1740172265998,-942.8,0.00011613,2]
[353979197,1740172266007,-500.0,0.00011613,2]
[353979198,1740172266017,-500.0,0.00011613,2]
[353979199,1740172266026,-500.0,0.00011613,2]
[353979200,1740172266035,-579.37,0.00011613,2]
[353979201,1740172266045,-1258.98,0.00011613,2]
[353979202,1740172266054,-1291.85,0.00011613,2]
[353979203,1740172266063,-500.0,0.00011613,2]
[353979204,1740172266072,-649.82,0.00011613,2]
[353979205,1740172266081,-1149.69,0.00011613,2]
[353979206,1740172266090,-661.23,0.00011613,2]
[353979207,1740172266099,-2660.4,0.00011613,2]
[353979208,1740172266108,-1991.69,0.00011613,2]
[353979209,1740172266118,-622.03,0.00011613,2]
[353979210,1740172266127,-500.0,0.00011613,2]
[353979211,1740172266137,-614.9,0.00011613,2]
[353979212,1740172266146,-1151.83,0.00011613,2]
[353979213,1740172266155,-1075.7,0.00011613,2]
[353979214,1740172266165,-500.0,0.00011613,2]
[353979215,1740172266174,-811.74,0.00011613,2]
[353979216,1740172266183,-855.71,0.00011613,2]
[353979217,1740172266192,-1450.82,0.00011613,2]
[353979218,1740172266201,-1170.09,0.00011613,2]
[353979219,1740172266211,-1013.9,0.00011613,2]
[353979220,1740172266220,-500.0,0.00011613,2]
[353979221,1740172266231,-376.26128416,0.00011613,2]
[353979222,1740172266240,-500.0,0.00011613,2]
[353979223,1740172266249,-1231.28,0.00011613,2]
[353979224,1740172266259,-500.0,0.00011613,2]
[353979225,1740172266268,-897.28,0.00011613,2]
[353979226,1740172266277,-1737.05,0.00011613,2]
[353979227,1740172266286,-769.3,0.00011613,2]
[353979228,1740172266295,-500.0,0.00011613,2]
[353979229,1740172266304,-853.87,0.00011613,2]
[353979230,1740172266314,-500.0,0.00011613,2]
[353979231,1740172266323,-500.0,0.00011613,2]
[353979232,1740172266333,-638.91,0.00011613,2]
[353979233,1740172266342,-916.53,0.00011613,2]
[353979234,1740172266351,-1480.7,0.00011613,2]
[353979235,1740172266360,-511.08,0.00011613,2]
[353979236,1740172266370,-500.0,0.00011613,2]
[353979237,1740172266379,-500.0,0.00011613,2]
[353979238,1740172266388,-1229.62,0.00011613,2]
[353979239,1740172266397,-1452.9,0.00011613,2]
[353979240,1740172266410,-580.46,0.00011613,2]
[353979241,1740172266419,-500.0,0.00011613,2]
[353979242,1740172266428,-1513.79,0.00011613,2]
[353979243,1740172266437,-1092.95,0.00011613,2]
[353979244,1740172266447,-794.55,0.00011613,2]
[353979245,1740172266456,-1136.08,0.00011613,2]
[353979246,1740172266465,-761.8,0.00011613,2]
[353979247,1740172266474,-1175.93,0.00011613,2]
[353979248,1740172266485,-500.0,0.00011613,2]
[353979249,1740172266494,-500.0,0.00011613,2]
[353979250,1740172266504,-931.16,0.00011613,2]
[353979251,1740172266513,-987.72,0.00011613,2]
[353979252,1740172266523,-731.97,0.00011613,2]
[353979253,1740172266532,-500.0,0.00011613,2]
[353979254,1740172266541,-500.0,0.00011613,2]
[353979255,1740172266550,-1001.35,0.00011613,2]
[353979256,1740172266559,-1199.69,0.00011613,2]
[353979257,1740172266567,-2093.79,0.00011613,2]
[353979258,1740172266577,-1172.47,0.00011613,2]
[353979259,1740172266586,-2284.05,0.00011613,2]
[353979260,1740172266596,-500.0,0.00011613,2]
[353979261,1740172266605,-5314.28,0.00011613,2]
[353979262,1740172266614,-591.75,0.00011613,2]
[353979263,1740172266623,-757.37,0.00011613,2]
[353979264,1740172266632,-1158.45,0.00011613,2]
[353979265,1740172266641,-588.49,0.00011613,2]
[353979266,1740172266650,-500.0,0.00011613,2]
[353979267,1740172266659,-500.0,0.00011613,2]
[353979268,1740172266668,-1067.6,0.00011613,2]
[353979269,1740172266677,-1637.66,0.00011613,2]
[353979270,1740172266687,-1092.4,0.00011613,2]
[353979271,1740172266696,-500.0,0.00011613,2]
[353979272,1740172266705,-500.0,0.00011613,2]
[353979273,1740172266714,-1130.79,0.00011613,2]
[353979274,1740172266723,-500.0,0.00011613,2]
[353979275,1740172266734,-589.95,0.00011613,2]
[353979276,1740172266743,-961.8,0.00011613,2]
[353979277,1740172266752,-1427.11,0.00011613,2]
[353979278,1740172266762,-500.0,0.00011613,2]
[353979279,1740172266771,-782.56,0.00011613,2]
[353979280,1740172266780,-969.96,0.00011613,2]
[353979281,1740172266789,-839.71,0.00011613,2]
[353979282,1740172266798,-500.0,0.00011613,2]
[353979283,1740172266808,-597.77,0.00011613,2]
[353979284,1740172266817,-863.56,0.00011613,2]
[353979285,1740172266826,-842.52,0.00011613,2]
[353979286,1740172266835,-2270.11,0.00011613,2]
[353979287,1740172266844,-2553.24,0.00011613,2]
[353979288,1740172266854,-830.72,0.00011613,2]
[353979289,1740172266863,-500.0,0.00011613,2]
[353979290,1740172266872,-663.66,0.00011613,2]
[353979291,1740172266882,-1389.81,0.00011613,2]
[353979292,1740172266891,-500.0,0.00011613,2]
[353979293,1740172266900,-294.52520915,0.00011615,3]
[353979294,1740172266909,-500.0,0.00011615,2]
[353979295,1740172266919,-519.67,0.00011615,2]
[353979296,1740172266928,-500.0,0.00011615,2]
[353979297,1740172266936,-500.0,0.00011615,2]
[353979298,1740172266946,-500.0,0.00011615,2]
[353979299,1740172266955,-500.0,0.00011615,2]
[353979300,1740172266964,-500.0,0.00011615,2]
[353979301,1740172266973,-500.0,0.00011615,2]
[353979302,1740172266984,-500.0,0.00011615,2]
[353979303,1740172266993,-500.0,0.00011615,2]
[353979304,1740172267002,-500.0,0.00011615,2]
[353979305,1740172267011,-500.0,0.00011615,2]
[353979306,1740172267020,-500.0,0.00011615,2]
[353979307,1740172267029,-500.0,0.00011615,2]
[353979308,1740172267038,-500.0,0.00011615,2]
[353979309,1740172267047,-500.0,0.00011615,2]
[353979310,1740172267056,-500.0,0.00011615,2]
[353979311,1740172267065,-500.0,0.00011615,2]
[353979312,1740172267074,-500.0,0.00011616,2]
[353979313,1740172267083,-258.03381503,0.00011617,2]
[353979314,1740172267092,-150.0,0.00011623,2]
[353979315,1740172267102,-4217.13181045,0.00011632,2]
[353979316,1740172267111,-150.0,0.00011638,2]
[353979317,1740172267119,-150.0,0.00011643,2]
[353979318,1740172267128,-150.0,0.00011644,2]
[353979319,1740172267137,-500.0,0.00011652,2]
[353979320,1740172267147,-150.0,0.00011653,2]
[353979321,1740172267156,-1000.0,0.00011657,2]
[353979322,1740172267165,-150.0,0.00011662,2]
[353979323,1740172267174,-1000.0,0.00011663,2]
[353979324,1740172267184,-334.21349985,0.0001167,2]
[353979325,1740172267193,-150.0,0.00011671,2]
[353979326,1740172267202,-150.0,0.00011671,2]
[353979327,1740172267212,-150.0,0.00011671,2]
[353979328,1740172267221,-194.49192879,0.00011671,2]
[353979329,1740172267231,-150.0,0.00011676,2]
[353979330,1740172267240,-150.0,0.00011683,2]
[353979331,1740172267250,-150.0,0.00011687,2]
[353979332,1740172267258,-150.0,0.00011692,2]
[353979333,1740172267267,-150.0,0.00011694,2]
[353979334,1740172267277,-500.0,0.00011695,2]
[353979335,1740172267286,-649.82,0.00011695,2]
[353979336,1740172267296,-622.03,0.00011695,2]
[353979337,1740172267305,-1075.7,0.00011695,2]
[353979338,1740172267314,-855.71,0.00011695,2]
[353979339,1740172267324,-1013.9,0.00011695,2]
[353979340,1740172267333,-1231.28,0.00011695,2]
[353979341,1740172267342,-769.3,0.00011695,2]
[353979342,1740172267351,-500.0,0.00011695,2]
[353979343,1740172267360,-916.53,0.00011695,2]
[353979344,1740172267370,-1480.7,0.00011695,2]
[353979345,1740172267379,-1452.9,0.00011695,2]
[353979346,1740172267388,-1092.95,0.00011695,2]
[353979347,1740172267397,-761.8,0.00011695,2]
[353979348,1740172267408,-931.16,0.00011695,2]
[353979349,1740172267418,-500.0,0.00011695,2]
[353979350,1740172267426,-1001.35,0.00011695,2]
[353979351,1740172267436,-2093.79,0.00011695,2]
[353979352,1740172267446,-591.75,0.00011695,2]
[353979353,1740172267456,-757.37,0.00011695,2]
[353979354,1740172267465,-500.0,0.00011695,2]
[353979355,1740172267474,-1067.6,0.00011695,2]
[353979356,1740172267485,-500.0,0.00011695,2]
[353979357,1740172267494,-500.0,0.00011695,2]
[353979358,1740172267506,-1427.11,0.00011695,2]
[353979359,1740172267515,-782.56,0.00011695,2]
[353979360,1740172267524,-969.96,0.00011695,2]
[353979361,1740172267533,-842.52,0.00011695,2]
[353979362,1740172267542,-830.72,0.00011695,2]
[353979363,1740172267551,-663.66,0.00011695,2]
[353979364,1740172267561,-538.49,0.00011696,2]
[353979365,1740172267570,-500.0,0.00011696,2]
[353979366,1740172267579,-295.24305933,0.00011696,2]
[353979367,1740172267589,-691.94,0.00011696,2]
[353979368,1740172267598,-500.0,0.00011696,2]
[353979369,1740172267606,-644.17,0.00011696,2]
[353979370,1740172267615,-500.0,0.00011696,2]
[353979371,1740172267624,-500.0,0.00011696,2]
[353979372,1740172267632,-667.56,0.00011696,2]
[353979373,1740172267641,-500.0,0.00011696,2]
[353979374,1740172267650,-756.41,0.00011696,2]
[353979375,1740172267659,-263.47723523,0.00011696,2]
[353979376,1740172267668,-651.32,0.00011696,2]
[353979377,1740172267677,-154.1562399,0.00011696,2]
[353979378,1740172267686,-500.0,0.00011696,2]
[353979379,1740172267695,-500.0,0.00011696,2]
[353979380,1740172267704,-500.0,0.00011696,2]
[353979381,1740172267713,-552.92,0.00011696,2]
[353979382,1740172267722,-664.1,0.00011696,2]
[353979383,1740172267731,-500.0,0.00011696,2]
[353979384,1740172267740,-500.0,0.00011696,2]
[353979385,1740172267749,-500.0,0.00011696,2]
[353979386,1740172267758,-641.81,0.00011696,2]
[353979387,1740172267768,-500.0,0.00011696,2]
[353979388,1740172267777,-500.0,0.00011696,2]
[353979389,1740172267786,-529.44,0.00011696,2]
[353979390,1740172267795,-500.0,0.00011696,2]
[353979391,1740172267804,-500.0,0.00011696,2]
[353979392,1740172267813,-500.0,0.00011696,2]
[353979393,1740172267821,-580.98,0.00011696,2]
[353979394,1740172267831,-500.0,0.00011696,2]
[353979395,1740172267840,-500.0,0.00011696,2]
[353979396,1740172267850,-656.48,0.00011696,2]
[353979397,1740172267858,-500.0,0.00011696,2]
[353979398,1740172267870,-645.51,0.00011696,2]
[353979399,1740172267879,-500.0,0.00011696,2]
[353979400,1740172267888,-500.0,0.00011696,2]
[353979401,1740172267897,-500.0,0.00011696,2]
[353979402,1740172267906,-875.23,0.00011696,2]
[353979403,1740172267915,-819.32,0.00011696,2]
[353979404,1740172267925,-514.61,0.00011696,2]
[353979405,1740172267934,-500.0,0.00011696,2]
[353979406,1740172267943,-681.73,0.00011696,2]
[353979407,1740172267952,-500.0,0.00011696,2]
[353979408,1740172267961,-773.23,0.00011696,2]
[353979409,1740172267970,-500.0,0.00011696,2]
[353979410,1740172267979,-500.0,0.00011696,2]
[353979411,1740172267989,-500.0,0.00011696,2]
[353979412,1740172267998,-500.0,0.00011696,2]
[353979413,1740172268007,-500.0,0.00011696,2]
[353979414,1740172268017,-193.607216,0.00011696,2]
[353979415,1740172268027,-760.5,0.00011696,2]
[353979416,1740172268037,-500.0,0.00011696,2]
[353979417,1740172268047,-565.11,0.00011696,2]
[353979418,1740172268057,-281.23673,0.00011696,2]
[353979419,1740172268068,-500.0,0.00011696,2]
[353979420,1740172268077,-500.0,0.00011696,2]
[353979421,1740172268087,-703.17,0.00011696,2]
[353979422,1740172268097,-500.0,0.00011696,2]
[353979423,1740172268107,-709.63,0.00011696,2]
[353979424,1740172268117,-562.69,0.00011696,2]
[353979425,1740172268127,-696.24,0.00011696,2]
[353979426,1740172268136,-567.21,0.00011696,2]
[353979427,1740172268146,-500.0,0.00011696,2]
[353979428,1740172268155,-694.16,0.00011696,2]
[353979429,1740172268166,-678.43,0.00011696,2]
[353979430,1740172268176,-690.55,0.00011696,2]
[353979431,1740172268186,-500.0,0.00011696,2]
[353979432,1740172268196,-500.0,0.00011696,2]
[353979433,1740172268206,-663.28,0.00011696,2]
[353979434,1740172268216,-500.0,0.00011696,2]
[353979435,1740172268226,-996.53,0.00011696,2]
[353979436,1740172268241,-731.38,0.00011696,2]
[353979437,1740172268250,-500.0,0.00011696,2]
[353979438,1740172268260,-643.91,0.00011696,2]
[353979439,1740172268269,-500.0,0.00011696,2]
[353979440,1740172268280,-500.0,0.00011696,2]
[353979441,1740172268290,-500.0,0.00011696,2]
[353979442,1740172268299,-500.0,0.00011696,2]
[353979443,1740172268309,-731.06,0.00011696,2]
[353979444,1740172268318,-500.0,0.00011696,2]
[353979445,1740172268327,-500.0,0.00011696,2]
[353979446,1740172268337,-500.0,0.00011696,2]
[353979447,1740172268347,-710.81,0.00011696,2]
[353979448,1740172268357,-500.6,0.00011696,2]
[353979449,1740172268366,-500.0,0.00011696,2]
[353979450,1740172268376,-624.32,0.00011696,2]
[353979451,1740172268385,-500.0,0.00011696,2]
[353979452,1740172268394,-500.0,0.00011696,2]
[353979453,1740172268408,-595.44,0.00011696,2]
[353979454,1740172268418,-500.0,0.00011696,2]
[353979455,1740172268427,-751.36,0.00011696,2]
[353979456,1740172268436,-636.57,0.00011696,2]
[353979457,1740172268446,-500.0,0.00011696,2]
[353979458,1740172268456,-500.0,0.00011696,2]
[353979459,1740172268466,-500.0,0.00011696,2]
[353979460,1740172268475,-893.82,0.00011696,2]
[353979461,1740172268489,-174.831552,0.00011696,2]
[353979462,1740172268499,-500.0,0.00011696,2]
[353979463,1740172268508,-500.0,0.00011696,2]
[353979464,1740172268517,-500.0,0.00011696,2]
[353979465,1740172268527,-587.07,0.00011696,2]
[353979466,1740172268537,-500.0,0.00011696,2]
[353979467,1740172268547,-1704.14,0.00011696,2]
[353979468,1740172268556,-500.0,0.00011696,2]
[353979469,1740172268566,-870.24,0.00011696,2]
[353979470,1740172268575,-523.06,0.00011696,2]
[353979471,1740172268585,-1140.49,0.00011696,2]
[353979472,1740172268596,-1885.94,0.00011696,2]
[353979473,1740172268605,-762.29,0.00011696,2]
[353979474,1740172268615,-985.36,0.00011696,2]
[353979475,1740172268625,-1329.74,0.00011696,2]
[353979476,1740172268634,-1050.0,0.00011696,2]
[353979477,1740172268644,-841.39,0.00011696,2]
[353979478,1740172268653,-500.0,0.00011696,2]
[353979479,1740172268663,-1478.11,0.00011696,2]
[353979480,1740172268672,-1687.94,0.00011696,2]
[353979481,1740172268682,-500.0,0.00011696,2]
[353979482,1740172268691,-1236.11,0.00011696,2]
[353979483,1740172268701,-500.0,0.00011696,2]
[353979484,1740172268713,-527.93,0.00011696,2]
[353979485,1740172268723,-500.0,0.00011696,2]
[353979486,1740172268735,-836.59,0.00011696,2]
[353979487,1740172268745,-1031.57,0.00011696,2]
[353979488,1740172268755,-1035.44,0.00011696,2]
[353979489,1740172268764,-500.0,0.00011696,2]
[353979490,1740172268774,-1245.12,0.00011696,2]
[353979491,1740172268783,-1117.96,0.00011696,2]
[353979492,1740172268794,-1068.45,0.00011696,2]
[353979493,1740172268803,-1183.89,0.00011696,2]
[353979494,1740172268812,-500.0,0.00011696,2]
[353979495,1740172268822,-1056.87,0.00011696,2]
[353979496,1740172268832,-5637.87,0.00011696,2]
[353979497,1740172268842,-797.09,0.00011696,2]
[353979498,1740172268851,-559.58,0.00011696,2]
[353979499,1740172268861,-1352.53,0.00011696,2]
[353979500,1740172268872,-739.7,0.00011696,2]
[353979501,1740172268883,-500.0,0.00011696,2]
[353979502,1740172268893,-1479.65,0.00011696,2]
[353979503,1740172268902,-500.0,0.00011696,2]
[353979504,1740172268913,-896.66,0.00011696,2]
[353979505,1740172268923,-2215.1,0.00011696,2]
[353979506,1740172268933,-1219.06,0.00011696,2]
[353979507,1740172268942,-500.0,0.00011696,2]
[353979508,1740172268952,-1253.82,0.00011696,2]
[353979509,1740172268961,-1134.86,0.00011696,2]
[353979510,1740172268972,-1523.22,0.00011696,2]
[353979511,1740172268983,-500.0,0.00011696,2]
[353979512,1740172268993,-500.0,0.00011696,2]
[353979513,1740172269004,-500.0,0.00011696,2]
[353979514,1740172269014,-1190.42,0.00011696,2]
[353979515,1740172269024,-942.8,0.00011696,2]
[353979516,1740172269034,-500.0,0.00011696,2]
[353979517,1740172269044,-500.0,0.00011696,2]
[353979518,1740172269054,-579.37,0.00011696,2]
[353979519,1740172269064,-1258.98,0.00011696,2]
[353979520,1740172269074,-1291.85,0.00011696,2]
[353979521,1740172269083,-500.0,0.00011696,2]
[353979522,1740172269094,-1149.69,0.00011696,2]
[353979523,1740172269104,-661.23,0.00011696,2]
[353979524,1740172269115,-2660.4,0.00011696,2]
[353979525,1740172269124,-1991.69,0.00011696,2]
[353979526,1740172269135,-500.0,0.00011696,2]
[353979527,1740172269145,-614.9,0.00011696,2]
[353979528,1740172269156,-1151.83,0.00011696,2]
[353979529,1740172269167,-500.0,0.00011696,2]
[353979530,1740172269177,-811.74,0.00011696,2]
[353979531,1740172269187,-1450.82,0.00011696,2]
[353979532,1740172269197,-1170.09,0.00011696,2]
[353979533,1740172269208,-500.0,0.00011696,2]
[353979534,1740172269218,-500.0,0.00011696,2]
[353979535,1740172269228,-500.0,0.00011696,2]
[353979536,1740172269241,-897.28,0.00011696,2]
[353979537,1740172269251,-1737.05,0.00011696,2]
[353979538,1740172269260,-500.0,0.00011696,2]
[353979539,1740172269270,-853.87,0.00011696,2]
[353979540,1740172269280,-500.0,0.00011696,2]
[353979541,1740172269290,-638.91,0.00011696,2]
[353979542,1740172269300,-511.08,0.00011696,2]
[353979543,1740172269310,-500.0,0.00011696,2]
[353979544,1740172269319,-500.0,0.00011696,2]
[353979545,1740172269329,-170.990078,0.00011696,2]
[353979546,1740172269339,-1229.62,0.00011696,2]
[353979547,1740172269348,-580.46,0.00011696,2]
[353979548,1740172269358,-492.01345999,0.00011696,2]
[353979549,1740172269367,-1513.79,0.00011696,2]
[353979550,1740172269377,-794.55,0.00011696,2]
[353979551,1740172269387,-1136.08,0.00011696,2]
[353979552,1740172269397,-1175.93,0.00011696,2]
[353979553,1740172269407,-500.0,0.00011696,2]
[353979554,1740172269418,-500.0,0.00011696,2]